fUST/lending_fUST_20250131
["ID","MTS","AMOUNT","RATE_DAILY","PERIOD"]
[350968326,1738253451509,-500.0,0.00019855,2]
[350968327,1738253451518,-500.0,0.00019855,2]
[350968328,1738253451531,-500.0,0.00019855,2]
[350968329,1738253451541,-500.0,0.00019855,2]
[350968330,1738253451551,-500.0,0.00019855,2]
[350968331,1738253451562,-500.0,0.00019855,2]
[350968332,1738253451572,-500.0,0.00019855,2]
[350968333,1738253451582,-500.0,0.00019855,2]
[350968334,1738253451591,-159.71939614,0.00019855,2]
[350968335,1738253451600,-500.0,0.00019855,2]
[350968336,1738253451610,-500.0,0.00019855,2]
[350968337,1738253451621,-500.0,0.00019855,2]
[350968338,1738253451631,-500.0,0.00019855,2]
[350968339,1738253451641,-151.0,0.00019855,2]
[350968340,1738253451651,-500.0,0.00019855,2]
[350968341,1738253451661,-151.0,0.00019855,2]
[350968342,1738253451670,-151.0,0.00019855,2]
[350968343,1738253451680,-905.48,0.00019855,2]
[350968344,1738253451689,-500.0,0.00019856,2]
[350968345,1738253451699,-625.80185227,0.00019856,2]
[350968346,1738253451708,-1694.9,0.00019856,2]
[350968347,1738253451718,-500.0,0.0001989,2]
[350968348,1738253451727,-500.0,0.0001989,2]
[350968349,1738253451737,-500.0,0.0001989,2]
[350968350,1738253451747,-500.0,0.0001989,2]
[350968351,1738253451757,-500.0,0.0001989,2]
[350968352,1738253451767,-500.0,0.0001989,2]
[350968353,1738253451777,-549.13,0.0001989,2]
[350968354,1738253451787,-500.0,0.0001989,2]
[350968355,1738253451796,-500.0,0.0001989,2]
[350968356,1738253451806,-500.0,0.0001989,2]
[350968357,1738253451816,-7561.41,0.000199,2]
[350968358,1738253451826,-211.90289788,0.000199,2]
[350968359,1738253451835,-500.0,0.0001999,2]
[350968360,1738253451845,-500.0,0.0001999,2]
[350968361,1738253451854,-500.0,0.0001999,2]
[350968362,1738253451864,-500.0,0.0001999,2]
[350968363,1738253451873,-500.0,0.0001999,2]
[350968364,1738253451883,-500.0,0.0001999,2]
[350968365,1738253451893,-209.96,0.0001999,2]
[350968366,1738253451902,-500.0,0.0001999,2]
[350968367,1738253451915,-500.0,0.0001999,2]
[350968368,1738253451925,-500.0,0.0001999,2]
[350968369,1738253451939,-500.0,0.0001999,2]
[350968370,1738253451949,-500.0,0.0001999,2]
[350968371,1738253451958,-500.0,0.0001999,2]
[350968372,1738253451968,-486.90027359,0.0001999,2]
[350968373,1738253451979,-500.0,0.0001999,2]
[350968374,1738253451990,-500.0,0.0001999,2]
[350968375,1738253452000,-500.0,0.0001999,2]
[350968376,1738253452012,-500.0,0.0001999,2]
[350968377,1738253452022,-500.0,0.0001999,2]
[350968378,1738253452035,-500.0,0.0001999,2]
[350968379,1738253452045,-500.0,0.0001999,2]
[350968380,1738253452056,-500.0,0.0001999,2]
[350968381,1738253452065,-566.67137301,0.0001999,2]
[350968382,1738253452075,-500.0,0.0001999,2]
[350968383,1738253452086,-500.0,0.0001999,2]
[350968384,1738253452095,-500.0,0.0001999,2]
[350968385,1738253452105,-500.0,0.0001999,2]
[350968386,1738253452115,-500.0,0.0001999,2]
[350968387,1738253452125,-500.0,0.0001999,2]
[350968388,1738253452135,-500.0,0.0001999,2]
[350968389,1738253452144,-500.0,0.0001999,2]
[350968390,1738253452154,-500.0,0.0001999,2]
[350968391,1738253452164,-424.82046304,0.0001999,2]
[350968392,1738253452174,-500.0,0.0001999,2]
[350968393,1738253452186,-500.0,0.0001999,2]
[350968394,1738253452196,-2521.78,0.0001999,2]
[350968395,1738253452206,-500.0,0.0001999,2]
[350968396,1738253452216,-500.0,0.0001999,2]
[350968397,1738253452225,-500.0,0.0001999,2]
[350968398,1738253452234,-500.0,0.0001999,2]
[350968399,1738253452244,-500.0,0.0001999,2]
[350968400,1738253452253,-500.0,0.0001999,2]
[350968401,1738253452262,-518.56,0.0001999,2]
[350968402,1738253452272,-500.0,0.0001999,2]
[350968403,1738253452285,-500.0,0.0001999,2]
[350968404,1738253452294,-500.0,0.0001999,2]
[350968405,1738253452303,-500.0,0.0001999,2]
[350968406,1738253452313,-500.0,0.0001999,2]
[350968407,1738253452322,-500.0,0.0001999,2]
[350968408,1738253452331,-500.0,0.0001999,2]
[350968409,1738253452341,-528.05,0.0001999,2]
[350968410,1738253452350,-500.0,0.0001999,2]
[350968411,1738253452359,-458.73,0.0001999,2]
[350968412,1738253452370,-500.0,0.00019991,2]
[350968413,1738253452380,-151.0,0.00019991,2]
[350968414,1738253452390,-151.0,0.00019991,2]
[350968415,1738253452477,-500.0,0.00019992,2]
[350968416,1738253452487,-301.21,0.00019992,2]
[350968417,1738253452496,-500.0,0.00019992,2]
[350968418,1738253452505,-500.0,0.00019992,2]
[350968419,1738253452516,-500.0,0.00019992,2]
[350968420,1738253452528,-500.0,0.00019992,2]
[350968421,1738253452539,-500.0,0.00019992,2]
[350968422,1738253452549,-546.36,0.00019992,2]
[350968423,1738253452558,-500.0,0.00019992,2]
[350968424,1738253452568,-500.0,0.00019992,2]
[350968425,1738253452577,-504.52866388,0.00019992,2]
[350968426,1738253452587,-500.0,0.00019992,2]
[350968427,1738253452597,-535.91,0.00019992,2]
[350968428,1738253452607,-905.48,0.00019992,2]
[350968429,1738253452616,-500.0,0.00019993,2]
[350968430,1738253452626,-2077.0,0.0002,3]
[350968431,1738253452636,-2075.0,0.0002,3]
[350968432,1738253452646,-2075.0,0.0002,3]
[350968433,1738253452656,-2075.0,0.0002,3]
[350968434,1738253452665,-2075.0,0.0002,3]
[350968435,1738253452675,-2075.0,0.0002,3]
[350968436,1738253452685,-9208.0,0.0002,2]
[350968437,1738253452695,-150.0,0.0002,2]
[350968438,1738253452705,-7079.97,0.0002,2]
[350968439,1738253452714,-160.0,0.0002,3]
[350968440,1738253452724,-500.0,0.00020027,2]
[350968441,1738253452734,-500.0,0.00020027,2]
[350968442,1738253452744,-500.0,0.00020027,2]
[350968443,1738253452754,-500.0,0.00020027,2]
[350968444,1738253452764,-500.0,0.00020027,2]
[350968445,1738253452773,-500.0,0.00020027,2]
[350968446,1738253452784,-549.13,0.00020027,2]
[350968447,1738253452794,-500.0,0.00020027,2]
[350968448,1738253452803,-500.0,0.00020027,2]
[350968449,1738253452812,-208.66999419,0.00020027,2]
[350968450,1738253452822,-941.43462625,0.00020039,2]
[350968451,1738253452832,-500.0,0.00020127,2]
[350968452,1738253452842,-340.81817734,0.00020127,2]
[350968453,1738253452853,-564.19,0.00020127,2]
[350968454,1738253452862,-500.0,0.00020127,2]
[350968455,1738253452872,-429.6036983,0.00020127,2]
[350968456,1738253452882,-500.0,0.00020127,2]
[350968457,1738253452892,-500.0,0.00020127,2]
[350968458,1738253452902,-500.0,0.00020127,2]
[350968459,1738253452911,-500.0,0.00020127,2]
[350968460,1738253452921,-500.0,0.00020127,2]
[350968461,1738253452934,-393.04,0.00020127,2]
[350968462,1738253452944,-500.0,0.00020127,2]
[350968463,1738253452954,-500.0,0.00020127,2]
[350968464,1738253452964,-500.0,0.00020127,2]
[350968465,1738253452974,-500.0,0.00020127,2]
[350968466,1738253452984,-500.0,0.00020127,2]
[350968467,1738253452994,-639.58,0.00020127,2]
[350968468,1738253453003,-500.0,0.00020127,2]
[350968469,1738253453016,-500.0,0.00020127,2]
[350968470,1738253453027,-500.0,0.00020127,2]
[350968471,1738253453036,-500.0,0.00020127,2]
[350968472,1738253453046,-500.0,0.00020127,2]
[350968473,1738253453055,-500.0,0.00020127,2]
[350968474,1738253453065,-500.0,0.00020127,2]
[350968475,1738253453076,-500.0,0.00020127,2]
[350968476,1738253453086,-2521.78,0.00020127,2]
[350968477,1738253453096,-500.0,0.00020127,2]
[350968478,1738253453106,-500.0,0.00020127,2]
[350968479,1738253453117,-500.0,0.00020127,2]
[350968480,1738253453127,-500.0,0.00020127,2]
[350968481,1738253453137,-1694.9,0.00020127,2]
[350968482,1738253453147,-500.0,0.00020127,2]
[350968483,1738253453158,-500.0,0.00020127,2]
[350968484,1738253453168,-500.0,0.00020127,2]
[350968485,1738253453178,-500.0,0.00020127,2]
[350968486,1738253453187,-500.0,0.00020127,2]
[350968487,1738253453197,-500.0,0.00020127,2]
[350968488,1738253453208,-500.0,0.00020127,2]
[350968489,1738253453218,-602.06,0.00020127,2]
[350968490,1738253453228,-500.0,0.00020127,2]
[350968491,1738253453238,-528.05,0.00020127,2]
[350968492,1738253453248,-441.11,0.00020127,2]
[350968493,1738253453258,-500.0,0.00020129,2]
[350968494,1738253453270,-500.0,0.00020129,2]
[350968495,1738253453283,-500.0,0.00020129,2]
[350968496,1738253453295,-500.0,0.00020129,2]
[350968497,1738253453305,-500.0,0.00020129,2]
[350968498,1738253453316,-591.88,0.00020129,2]
[350968499,1738253453326,-500.0,0.00020129,2]
[350968500,1738253453336,-500.0,0.00020129,2]
[350968501,1738253453346,-905.48,0.00020129,2]
[350968502,1738253453357,-500.0,0.0002013,2]
[350968503,1738253453367,-500.0,0.00020164,2]
[350968504,1738253453378,-500.0,0.00020164,2]
[350968505,1738253453387,-500.0,0.00020164,2]
[350968506,1738253453398,-500.0,0.00020164,2]
[350968507,1738253453408,-500.0,0.00020164,2]
[350968508,1738253453418,-332.76,0.00020164,2]
[350968509,1738253453428,-549.13,0.00020164,2]
[350968510,1738253453438,-500.0,0.00020164,2]
[350968511,1738253453448,-500.0,0.00020164,2]
[350968512,1738253453459,-500.0,0.00020264,2]
[350968513,1738253453469,-500.0,0.00020264,2]
[350968514,1738253453479,-500.0,0.00020264,2]
[350968515,1738253453488,-500.0,0.00020264,2]
[350968516,1738253453497,-500.0,0.00020264,2]
[350968517,1738253453507,-500.0,0.00020264,2]
[350968518,1738253453517,-500.0,0.00020264,2]
[350968519,1738253453528,-500.0,0.00020264,2]
[350968520,1738253453538,-500.0,0.00020264,2]
[350968521,1738253453547,-500.0,0.00020264,2]
[350968522,1738253453557,-500.0,0.00020264,2]
[350968523,1738253453567,-500.0,0.00020264,2]
[350968524,1738253453578,-500.0,0.00020264,2]
[350968525,1738253453589,-500.0,0.00020264,2]
[350968526,1738253453599,-500.0,0.00020264,2]
[350968527,1738253453609,-500.0,0.00020264,2]
[350968528,1738253453618,-500.0,0.00020264,2]
[350968529,1738253453628,-500.0,0.00020264,2]
[350968530,1738253453638,-500.0,0.00020264,2]
[350968531,1738253453647,-2521.78,0.00020264,2]
[350968532,1738253453658,-500.0,0.00020264,2]
[350968533,1738253453667,-500.0,0.00020264,2]
[350968534,1738253453677,-500.0,0.00020264,2]
[350968535,1738253453687,-500.0,0.00020264,2]
[350968536,1738253453760,-500.0,0.00020264,2]
[350968537,1738253453776,-500.0,0.00020264,2]
[350968538,1738253453786,-500.0,0.00020264,2]
[350968539,1738253453796,-500.0,0.00020264,2]
[350968540,1738253453808,-500.0,0.00020264,2]
[350968541,1738253453818,-500.0,0.00020264,2]
[350968542,1738253453828,-528.05,0.00020264,2]
[350968543,1738253453838,-500.0,0.00020266,2]
[350968544,1738253453848,-500.0,0.00020266,2]
[350968545,1738253453858,-291.58,0.00020266,2]
[350968546,1738253453868,-500.0,0.00020266,2]
[350968547,1738253453878,-500.0,0.00020266,2]
[350968548,1738253453888,-500.0,0.00020266,2]
[350968549,1738253453898,-500.0,0.00020266,2]
[350968550,1738253453907,-905.48,0.00020266,2]
[350968551,1738253453917,-511.1195879,0.00020267,2]
[350968552,1738253453926,-500.0,0.00020301,2]
[350968553,1738253453942,-500.0,0.00020301,2]
[350968554,1738253453952,-500.0,0.00020301,2]
[350968555,1738253453962,-500.0,0.00020301,2]
[350968556,1738253453971,-589.97,0.00020301,2]
[350968557,1738253453982,-549.13,0.00020301,2]
[350968558,1738253453992,-500.0,0.00020301,2]
[350968559,1738253454002,-500.0,0.00020301,2]
[350968560,1738253454013,-227.82352887,0.00020401,2]
[350968561,1738253454024,-500.0,0.00020401,2]
[350968562,1738253454035,-151.0,0.00020401,2]
[350968563,1738253454045,-151.0,0.00020401,2]
[350968564,1738253454054,-151.0,0.00020401,2]
[350968565,1738253454064,-500.0,0.00020401,2]
[350968566,1738253454075,-500.0,0.00020401,2]
[350968567,1738253454085,-500.0,0.00020401,2]
[350968568,1738253454097,-500.0,0.00020401,2]
[350968569,1738253454106,-325.460727,0.00020401,2]
[350968570,1738253454116,-500.0,0.00020401,2]
[350968571,1738253454126,-500.0,0.00020401,2]
[350968572,1738253454136,-325.460727,0.00020401,2]
[350968573,1738253454145,-500.0,0.00020401,2]
[350968574,1738253454155,-500.0,0.00020401,2]
[350968575,1738253454164,-500.0,0.00020401,2]
[350968576,1738253454174,-500.0,0.00020401,2]
[350968577,1738253454183,-500.0,0.00020401,2]
[350968578,1738253454193,-500.0,0.00020401,2]
[350968579,1738253454203,-500.0,0.00020401,2]
[350968580,1738253454212,-500.0,0.00020401,2]
[350968581,1738253454223,-500.0,0.00020401,2]
[350968582,1738253454233,-2521.78,0.00020401,2]
[350968583,1738253454243,-500.0,0.00020401,2]
[350968584,1738253454252,-500.0,0.00020401,2]
[350968585,1738253454262,-500.0,0.00020401,2]
[350968586,1738253454272,-500.0,0.00020401,2]
[350968587,1738253454283,-500.0,0.00020401,2]
[350968588,1738253454293,-500.0,0.00020401,2]
[350968589,1738253454303,-500.0,0.00020401,2]
[350968590,1738253454312,-500.0,0.00020401,2]
[350968591,1738253454323,-528.05,0.00020401,2]
[350968592,1738253454332,-156.533634,0.00020401,2]
[350968593,1738253454346,-500.0,0.00020403,2]
[350968594,1738253454367,-500.0,0.00020403,2]
[350968595,1738253454382,-571.35653679,0.00020403,2]
[350968596,1738253454399,-617.62,0.00020403,2]
[350968597,1738253454419,-500.0,0.00020403,2]
[350968598,1738253454439,-500.0,0.00020403,2]
[350968599,1738253454455,-151.0,0.00020403,2]
[350968600,1738253454471,-151.0,0.00020403,2]
[350968601,1738253454489,-905.48,0.00020403,2]
[350968602,1738253454503,-500.0,0.00020438,2]
[350968603,1738253454519,-500.0,0.00020438,2]
[350968604,1738253454538,-500.0,0.00020438,2]
[350968605,1738253454557,-549.13,0.00020438,2]
[350968606,1738253454576,-500.0,0.00020438,2]
[350968607,1738253454588,-500.0,0.00020438,2]
[350968608,1738253454606,-192.497164,0.00020447,2]
[350968609,1738253454622,-500.0,0.00020538,2]
[350968610,1738253454635,-171.12025803,0.00020538,2]
[350968611,1738253454651,-546.1,0.00020538,2]
[350968612,1738253454664,-500.0,0.00020538,2]
[350968613,1738253454679,-500.0,0.00020538,2]
[350968614,1738253454693,-468.83,0.00020538,2]
[350968615,1738253454707,-500.0,0.00020538,2]
[350968616,1738253454720,-500.0,0.00020538,2]
[350968617,1738253454734,-500.0,0.00020538,2]
[350968618,1738253454750,-500.0,0.00020538,2]
[350968619,1738253454763,-563.3,0.00020538,2]
[350968620,1738253454778,-500.0,0.00020538,2]
[350968621,1738253454793,-500.0,0.00020538,2]
[350968622,1738253454807,-500.0,0.00020538,2]
[350968623,1738253454821,-2521.78,0.00020538,2]
[350968624,1738253454836,-500.0,0.00020538,2]
[350968625,1738253454850,-378.13575091,0.00020538,2]
[350968626,1738253454864,-570.09,0.00020538,2]
[350968627,1738253454879,-623.62,0.00020538,2]
[350968628,1738253454893,-603.74,0.00020538,2]
[350968629,1738253454908,-336.28,0.00020538,2]
[350968630,1738253454922,-500.0,0.00020538,2]
[350968631,1738253454938,-528.05,0.00020538,2]
[350968632,1738253454953,-500.0,0.0002054,2]
[350968633,1738253454968,-500.0,0.0002054,2]
[350968634,1738253454981,-271.41397651,0.0002054,2]
[350968635,1738253454991,-905.48,0.0002054,2]
[350968636,1738253455000,-499.0,0.00020547,4]
[350968637,1738253455012,-500.0,0.00020575,2]
[350968638,1738253455021,-500.0,0.00020575,2]
[350968639,1738253455032,-500.0,0.00020575,2]
[350968640,1738253455041,-549.13,0.00020575,2]
[350968641,1738253455051,-500.0,0.00020575,2]
[350968642,1738253455060,-500.0,0.00020575,2]
[350968643,1738253455070,-500.0,0.0002064,2]
[350968644,1738253455080,-500.0,0.00020675,2]
[350968645,1738253455091,-500.0,0.00020675,2]
[350968646,1738253455101,-500.0,0.00020675,2]
[350968647,1738253455110,-500.0,0.00020675,2]
[350968648,1738253455258,-500.0,0.00020675,2]
[350968649,1738253455277,-500.0,0.00020675,2]
[350968650,1738253455287,-500.0,0.00020675,2]
[350968651,1738253455298,-500.0,0.00020675,2]
[350968652,1738253455308,-500.0,0.00020675,2]
[350968653,1738253455318,-2521.78,0.00020675,2]
[350968654,1738253455327,-500.0,0.00020675,2]
[350968655,1738253455336,-500.0,0.00020675,2]
[350968656,1738253455348,-528.05,0.00020675,2]
[350968657,1738253455358,-500.0,0.00020677,2]
[350968658,1738253455367,-500.0,0.00020677,2]
[350968659,1738253455377,-905.48,0.00020677,2]
[350968660,1738253455387,-151.0,0.00020684,2]
[350968661,1738253455396,-500.0,0.00020712,2]
[350968662,1738253455406,-549.13,0.00020712,2]
[350968663,1738253455416,-500.0,0.00020712,2]
[350968664,1738253455427,-500.0,0.00020812,2]
[350968665,1738253455437,-500.0,0.00020812,2]
[350968666,1738253455447,-500.0,0.00020812,2]
[350968667,1738253455457,-500.0,0.00020812,2]
[350968668,1738253455467,-460.32,0.00020812,2]
[350968669,1738253455477,-2521.78,0.00020812,2]
[350968670,1738253455486,-578.96,0.00020812,2]
[350968671,1738253455496,-528.05,0.00020812,2]
[350968672,1738253455505,-905.48,0.00020814,2]
[350968673,1738253455515,-500.0,0.00020849,2]
[350968674,1738253455525,-549.13,0.00020849,2]
[350968675,1738253455535,-500.0,0.00020849,2]
[350968676,1738253455545,-500.0,0.00020949,2]
[350968677,1738253455554,-500.0,0.00020949,2]
[350968678,1738253455564,-2521.78,0.00020949,2]
[350968679,1738253455573,-528.05,0.00020949,2]
[350968680,1738253455583,-905.48,0.00020951,2]
[350968681,1738253455593,-512.72,0.00020986,2]
[350968682,1738253455602,-549.13,0.00020986,2]
[350968683,1738253455612,-184.75,0.00020986,2]
[350968684,1738253455622,-1694.9,0.00020998,2]
[350968685,1738253455631,-3000.0,0.00021,2]
[350968686,1738253455641,-500.25,0.00021,7]
[350968687,1738253455650,-3000.0,0.0002101,2]
[350968688,1738253455661,-3000.0,0.0002102,2]
[350968689,1738253455671,-3000.0,0.0002103,2]
[350968690,1738253455681,-3000.0,0.0002104,2]
[350968691,1738253455691,-1694.9,0.00021049,2]
[350968692,1738253455701,-3000.0,0.0002105,2]
[350968693,1738253455711,-3000.0,0.0002106,2]
[350968694,1738253455720,-3000.0,0.0002107,2]
[350968695,1738253455730,-3000.0,0.0002108,2]
[350968696,1738253455742,-193.3,0.00021086,2]
[350968697,1738253455751,-500.0,0.00021086,2]
[350968698,1738253455761,-2521.78,0.00021086,2]
[350968699,1738253455770,-528.05,0.00021086,2]
[350968700,1738253455780,-905.48,0.00021088,2]
[350968701,1738253455790,-3000.0,0.0002109,2]
[350968702,1738253455800,-3000.0,0.000211,2]
[350968703,1738253455809,-1694.9,0.00021109,2]
[350968704,1738253455819,-3000.0,0.0002111,2]
[350968705,1738253455828,-3000.0,0.0002112,2]
[350968706,1738253455838,-549.13,0.00021123,2]
[350968707,1738253455847,-3000.0,0.0002113,2]
[350968708,1738253455856,-3000.0,0.0002114,2]
[350968709,1738253455866,-3000.0,0.0002115,2]
[350968710,1738253455875,-314.0564,0.0002115,2]
[350968711,1738253455885,-314.0564,0.0002115,2]
[350968712,1738253455894,-3000.0,0.0002116,2]
[350968713,1738253455904,-3000.0,0.0002117,2]
[350968714,1738253455914,-1694.9,0.00021179,2]
[350968715,1738253455926,-3000.0,0.0002118,2]
[350968716,1738253455939,-158.59,0.0002118,2]
[350968717,1738253455948,-1000.0,0.00021188,2]
[350968718,1738253455958,-3000.0,0.0002119,2]
[350968719,1738253455967,-3668.263365,0.000212,2]
[350968720,1738253455978,-151.0,0.00021223,2]
[350968721,1738253455987,-151.0,0.00021223,2]
[350968722,1738253455997,-151.0,0.00021223,2]
[350968723,1738253456008,-325.460727,0.00021223,2]
[350968724,1738253456017,-325.460727,0.00021223,2]
[350968725,1738253456027,-500.0,0.00021223,2]
[350968726,1738253456038,-2521.78,0.00021223,2]
[350968727,1738253456047,-528.05,0.00021223,2]
[350968728,1738253456057,-1000.0,0.00021225,2]
[350968729,1738253456066,-905.48,0.00021225,2]
[350968730,1738253456076,-549.13,0.0002126,2]
[350968731,1738253456086,-2770.98317467,0.000213,2]
[350968732,1738253456280,-500.0,0.00019168,2]
[350968733,1738253456291,-500.0,0.00019305,2]
[350968734,1738253456301,-500.0,0.00019442,2]
[350968735,1738253456311,-500.0,0.00019479,2]
[350968736,1738253456321,-500.0,0.00019579,2]
[350968737,1738253456330,-500.0,0.00019616,2]
[350968738,1738253456340,-500.0,0.00019716,2]
[350968739,1738253456350,-500.0,0.00019753,2]
[350968740,1738253456360,-500.0,0.0001989,2]
[350968741,1738253456369,-500.0,0.00020027,2]
[350968742,1738253456379,-500.0,0.00020164,2]
[350968743,1738253456388,-4790.42682533,0.000213,2]
[350968744,1738253456398,-151.0,0.000213,2]
[350968745,1738253456408,-151.0,0.000213,2]
[350968746,1738253456418,-160.0,0.00021344,2]
[350968747,1738253456427,-500.0,0.0002136,2]
[350968748,1738253456438,-2521.78,0.0002136,2]
[350968749,1738253456447,-528.05,0.0002136,2]
[350968750,1738253456457,-905.48,0.00021362,2]
[350968751,1738253456467,-549.13,0.00021397,2]
[350968752,1738253456478,-7079.97,0.000214,2]
[350968753,1738253456487,-500.0,0.00021497,2]
[350968754,1738253456497,-943.74371578,0.00021497,2]
[350968755,1738253456604,-492.11251656,0.00021497,2]
[350968756,1738253456615,-763.062,0.00021497,2]
[350968757,1738253456628,-322.86176766,0.00021497,2]
[350968758,1738253456637,-528.05,0.00021497,2]
[350968759,1738253456647,-905.48,0.00021499,2]
[350968760,1738253456656,-1691.98975117,0.000215,30]
[350968761,1738253456669,-56756.13024883,0.000215,30]
[350968762,1738253456678,-549.13,0.00021534,2]
[350968763,1738253456688,-395.0,0.00021596,2]
[350968764,1738253456698,-9208.0,0.000216,4]
[350968765,1738253456707,-500.0,0.00021634,2]
[350968766,1738253456716,-2521.78,0.00021634,2]
[350968767,1738253456726,-528.05,0.00021634,2]
[350968768,1738253456736,-905.48,0.00021636,2]
[350968769,1738253456746,-250.18655202,0.00021658,2]
[350968770,1738253456756,-153.0,0.00021662,2]
[350968771,1738253456765,-153.0,0.00021662,2]
[350968772,1738253456775,-153.0,0.00021662,2]
[350968773,1738253456786,-153.0,0.00021662,2]
[350968774,1738253456795,-153.0,0.00021662,2]
[350968775,1738253456805,-153.0,0.00021662,2]
[350968776,1738253456814,-250.1,0.0002167,2]
[350968777,1738253456824,-549.13,0.00021671,2]
[350968778,1738253456834,-160.0,0.00021704,120]
[350968779,1738253456845,-543.95944567,0.00021758,2]
[350968780,1738253456855,-500.1,0.00021758,2]
[350968781,1738253456865,-500.0,0.00021771,2]
[350968782,1738253456874,-2521.78,0.00021771,2]
[350968783,1738253456884,-528.05,0.00021771,2]
[350968784,1738253456894,-905.48,0.00021773,2]
[350968785,1738253456904,-154.0,0.00021778,2]
[350968786,1738253456914,-154.0,0.00021778,2]
[350968787,1738253456924,-152.0,0.00021778,2]
[350968788,1738253456935,-154.0,0.00021778,2]
[350968789,1738253456946,-154.0,0.00021778,2]
[350968790,1738253456955,-154.0,0.00021778,2]
[350968791,1738253456965,-154.0,0.00021778,2]
[350968792,1738253456975,-154.0,0.00021778,2]
[350968793,1738253456985,-154.0,0.00021778,2]
[350968794,1738253456995,-154.0,0.00021778,2]
[350968795,1738253457004,-154.0,0.00021778,2]
[350968796,1738253457015,-154.0,0.00021778,2]
[350968797,1738253457025,-154.0,0.00021778,2]
[350968798,1738253457036,-154.0,0.00021778,2]
[350968799,1738253457045,-162.0,0.00021778,2]
[350968800,1738253457055,-549.13,0.00021808,2]
[350968801,1738253457066,-100.23141703,0.00021858,2]
[350968802,1738253457351,-500.0,0.00019853,2]
[350968803,1738253457361,-500.0,0.0001999,2]
[350968804,1738253457371,-159.01,0.00020127,2]
[350968805,1738253457381,-500.0,0.00020301,2]
[350968806,1738253457394,-500.0,0.00020438,2]
[350968807,1738253457406,-500.0,0.00020575,2]
[350968808,1738253457420,-500.0,0.00020712,2]
[350968809,1738253457431,-500.0,0.00020849,2]
[350968810,1738253457441,-500.0,0.00020986,2]
[350968811,1738253457451,-465.59,0.00021123,2]
[350968812,1738253457461,-822.76979599,0.00021858,2]
[350968813,1738253457472,-1694.9,0.00021892,2]
[350968814,1738253457483,-535.929,0.00021893,2]
[350968815,1738253457493,-972.231,0.00021893,2]
[350968816,1738253457503,-1240.479,0.00021893,2]
[350968817,1738253457514,-500.0,0.00021908,2]
[350968818,1738253457524,-2521.78,0.00021908,2]
[350968819,1738253457535,-528.05,0.00021908,2]
[350968820,1738253457545,-905.48,0.0002191,2]
[350968821,1738253457555,-500.0,0.00021917,7]
[350968822,1738253457565,-500.0,0.00021917,7]
[350968823,1738253457575,-500.0,0.00021917,7]
[350968824,1738253457691,-500.0,0.00021917,7]
[350968825,1738253457701,-500.0,0.00021917,7]